bitfinex-derivatives/quotes_ETHF0:USTF0_20240930
["timestamp","ask_amount","ask_price","bid_price","bid_amount"]
[1727688560280,0.44869372,2637.5,2637.4,0.3791]
[1727688560775,0.44869372,2637.5,2637.0,1.1572]
[1727688560776,0.44869372,2637.5,2637.0,0.7533]
[1727688560979,0.37912,2637.3,2637.1,0.37914]
[1727688561178,0.80029372,2637.2,2637.0,1.4564]
[1727688561379,0.80029372,2637.2,2637.0,1.09]
[1727688561589,0.3738,2637.1,2637.0,1.46915]
[1727688562180,0.3738,2637.1,2636.7,12.09287]
[1727688562181,0.42579372,2637.1,2636.7,12.09287]
[1727688562484,1.46919,2636.8,2636.7,11.72637]
[1727688563179,1.52118372,2636.8,2636.7,11.72637]
[1727688563380,0.05199372,2636.8,2636.7,11.72637]
[1727688563580,5.31398372,2636.8,2636.7,11.72637]
[1727688563784,11.31398372,2636.8,2636.7,11.72637]
[1727688579495,14.52178372,2636.8,2636.7,11.72637]
[1727688579691,13.43178372,2636.8,2636.7,11.72637]
[1727688579892,14.52178372,2636.8,2636.7,11.72637]
[1727688594900,15.28138372,2636.8,2636.7,10.35556961]
[1727688595305,15.28138372,2636.8,2636.7,10.04038772]
[1727688596307,18.66362078,2636.8,2636.7,10.04038772]
[1727688596508,8.19138372,2636.8,2636.7,10.04038772]
[1727688596710,14.90228372,2636.8,2636.7,10.04038772]
[1727688597010,8.90228372,2636.8,2636.7,10.04038772]
[1727688597206,14.90228372,2636.8,2636.7,10.04038772]
[1727688597402,8.90228372,2636.8,2636.7,10.04038772]
[1727688597608,14.90228372,2636.8,2636.7,10.04038772]
[1727688597910,8.90228372,2636.8,2636.7,10.04038772]
[1727688599212,13.37452078,2636.8,2636.7,10.04038772]
[1727688600421,8.11122078,2636.8,2636.7,10.04038772]
[1727688600622,4.72898372,2636.8,2636.7,10.04038772]
[1727688601228,14.52178372,2636.8,2636.7,10.04038772]
[1727688601529,14.90188372,2636.8,2636.7,9.22291772]
[1727688601828,14.90188372,2636.8,2636.7,7.16206141]
[1727688602426,14.90188372,2636.8,2636.7,6.29206141]
[1727688603027,13.81188372,2636.8,2636.7,6.29206141]
[1727688603229,14.90188372,2636.8,2636.7,6.29206141]
[1727688604222,19.37412078,2636.8,2636.7,6.29206141]
[1727688604925,13.35458966,2636.8,2636.7,6.29206141]
[1727688605330,8.90188372,2636.8,2636.7,6.29206141]
[1727688605530,11.88718619,2636.8,2636.7,6.29206141]
[1727688605729,12.97718619,2636.8,2636.7,6.29206141]
[1727688606125,12.97718619,2636.8,2636.7,4.15662947]
[1727688606323,8.52178372,2636.8,2636.7,4.15662947]
[1727688606727,13.37930018,2636.8,2636.7,4.15662947]
[1727688607325,13.00011018,2636.8,2636.3,1.1668]
[1727688607528,1.09,2636.4,2636.3,1.1668]
[1727688608229,1.14199372,2636.4,2636.3,1.1668]
[1727688610437,6.09918647,2636.4,2636.3,1.1668]
[1727688611326,0.05199372,2636.4,2636.3,6.42886]
[1727688611634,4.95719275,2636.5,2636.3,12.42886]
[1727688611936,6.04719275,2636.7,2636.4,3.7928]
[1727688612131,6.04719275,2636.7,2636.3,2.63606]
[1727688612437,1.09,2636.6,2636.3,1.1668]
[1727688613136,1.09,2636.5,2636.3,1.1668]
[1727688614232,1.09,2636.5,2636.3,0.7805]
[1727688616532,6.04719275,2636.5,2636.3,0.7805]
[1727688617540,4.95719275,2636.4,2636.3,0.7805]
[1727688618549,4.95719275,2636.4,2636.3,0.76366]
[1727688618940,6.04719275,2636.6,2636.3,0.76366]
[1727688619539,6.04719275,2636.6,2636.3,0.76365]
[1727688620537,4.47184763,2636.4,2636.3,0.76365]
[1727688620843,4.47184763,2636.5,2636.4,0.37924]
[1727688621048,4.95719275,2636.6,2636.4,0.37924]
[1727688621049,9.42904038,2636.6,2636.4,0.37924]
[1727688621249,4.47184763,2636.6,2636.4,4.17204]
[1727688621642,4.47184763,2636.6,2636.4,5.26204]
[1727688623140,4.47184763,2636.7,2636.4,5.26203]
[1727688623342,4.47184763,2636.7,2636.4,1.46923]
[1727688623641,4.47184763,2636.6,2636.4,1.46923]
[1727688624243,4.47184763,2636.6,2636.4,5.26203]
[1727688624453,3.2078,2636.8,2636.4,5.26203]
[1727688624653,3.2078,2636.8,2636.4,1.46923]
[1727688624839,3.2078,2636.8,2636.4,1.09]
[1727688625042,3.2078,2636.8,2636.5,0.37923]
[1727688627250,1.09,2636.9,2636.5,0.37923]
[1727688628846,3.9778,2637.0,2636.6,0.37921]
[1727688629055,3.5854,2637.0,2636.7,1.4589]
[1727688629352,3.5854,2637.0,2636.7,1.8381]
[1727688629947,3.5854,2637.0,2636.7,1.4589]
[1727688630749,3.2078,2637.0,2636.9,0.37917]
[1727688630951,0.7436,2637.3,2636.8,4.8828]
[1727688631154,0.7436,2637.3,2637.0,1.09]
[1727688631453,4.47184763,2637.3,2637.1,0.76163]
[1727688631655,4.47184763,2637.3,2637.1,4.55363]
[1727688631850,4.47184763,2637.3,2637.2,3.2078]
[1727688632046,4.47184763,2637.3,2637.2,6.9998]
[1727688632246,4.47184763,2637.4,2637.2,6.9998]
[1727688632448,5.56184763,2637.4,2637.2,3.2078]
[1727688633557,5.56184763,2637.4,2637.1,0.3825]
[1727688633856,5.56184763,2637.4,2637.1,0.76164]
[1727688635444,5.56184763,2637.4,2637.2,0.37913]
[1727688635850,5.56184763,2637.4,2637.1,0.76163]
[1727688636255,1.09,2637.4,2637.1,0.76163]
[1727688636560,1.09,2637.4,2637.1,0.3825]
[1727688636764,1.09,2637.4,2637.1,0.76164]
[1727688637061,0.37,2637.3,2637.1,0.76164]
[1727688637257,0.3793,2637.2,2637.1,0.76164]
[1727688637462,0.7438,2637.2,2637.1,0.76164]
[1727688637756,0.7438,2637.2,2637.1,4.55364]
[1727688641457,0.7438,2637.2,2637.1,5.64364]
[1727688641658,0.3793,2637.2,2637.1,5.64364]
[1727688642056,0.3888,2637.4,2637.1,5.64364]
[1727688642057,0.3888,2637.4,2637.1,11.2645]
[1727688642260,0.3935,2637.6,2637.3,1.09]
[1727688642464,0.3935,2637.6,2637.5,1.46909]
[1727688642856,0.3935,2637.6,2637.5,4.17029]
[1727688643757,0.3935,2637.6,2637.5,3.7912]
[1727688643961,0.3935,2637.6,2637.5,4.17029]
[1727688645858,1.6063,2637.6,2637.2,3.2078]
[1727688646171,1.2128,2637.4,2637.3,0.37911]
[1727688646980,1.2128,2637.4,2637.2,3.58692]
[1727688647271,1.2128,2637.4,2637.2,3.2078]
[1727688647465,1.2128,2637.4,2637.3,0.37911]
[1727688647666,1.2128,2637.4,2637.2,3.2078]
[1727688648074,1.2128,2637.3,2637.2,3.2078]
[1727688648266,1.2128,2637.3,2637.2,3.58693]
[1727688649172,1.2128,2637.3,2637.2,3.2078]
[1727688651075,1.2128,2637.3,2637.0,1.09]
[1727688651272,3.2078,2637.1,2636.7,0.9227253]
[1727688651472,0.3993,2637.0,2636.9,0.92320921]
[1727688651967,0.3993,2637.0,2636.9,10.71520921]
[1727688652171,0.3993,2637.0,2636.9,1.70290756]
[1727688652470,0.3993,2637.0,2636.9,0.37917]
[1727688652775,0.3993,2637.0,2636.9,1.46917]
[1727688653171,0.3993,2637.0,2636.6,5.47583]
[1727688653369,0.3993,2637.0,2636.9,0.37917]
[1727688653575,0.3993,2637.0,2636.9,1.46917]
[1727688657171,0.3993,2637.0,2636.9,0.37917]
[1727688657371,0.3993,2637.0,2636.9,1.46917]
[1727688660386,3.70119244,2637.0,2636.9,0.37917]
[1727688662476,10.79119244,2637.0,2636.7,0.37919]
[1727688662778,7.59969244,2636.8,2636.7,0.37919]
[1727688662976,7.59969244,2636.8,2636.4,1.09]
[1727688663171,3.30189244,2636.6,2636.3,1.09]
[1727688663374,3.30189244,2636.6,2636.5,0.37923]
[1727688663881,3.30189244,2636.6,2636.5,1.46923]
[1727688665378,10.39189244,2636.6,2636.2,1.09]
[1727688665581,3.30189244,2636.4,2636.0,1.8672]
[1727688665888,0.758,2636.3,2636.2,0.37927]
[1727688666183,0.758,2636.3,2636.2,1.46927]
[1727688666980,4.2978,2636.8,2636.4,0.37924]
[1727688667174,0.758,2636.7,2636.6,1.09]
[1727688667381,3.30189244,2636.7,2636.6,1.09]
[1727688667584,3.30189244,2636.7,2636.6,1.46921]
[1727688671581,3.2078,2636.8,2636.6,1.09]
[1727688671785,0.758,2637.0,2636.8,0.37918]
[1727688672085,4.05989244,2637.0,2636.8,1.46918]
[1727688673481,4.05989244,2637.0,2636.7,2.23039]
[1727688673686,4.05989244,2637.0,2636.7,1.86149]
[1727688673887,4.05989244,2637.0,2636.8,0.37919]
[1727688676091,3.30189244,2636.9,2636.8,0.37919]
[1727688678686,10.39189244,2636.9,2636.3,0.354]
[1727688678883,10.39189244,2636.9,2636.0,1.93498216]
[1727688678884,6.50969244,2636.7,2636.4,0.37923]
[1727688679086,0.764,2636.6,2636.4,0.37923]
[1727688679790,0.764,2636.6,2636.5,0.37923]
[1727688688799,0.764,2636.6,2636.5,1.46923]
[1727688689702,10.06589244,2636.6,2636.2,0.37927]
[1727688689894,3.30189244,2636.3,2636.2,0.37927]
[1727688690792,3.2078,2636.5,2635.9,0.35493572]
[1727688691095,0.3901,2636.7,2636.6,0.37921]
[1727688697195,0.3901,2636.7,2636.6,0.76961]
[1727688699006,0.7816,2636.9,2636.8,0.37919]
[1727688699306,6.7816,2636.9,2636.8,1.46919]
[1727688699505,10.08349244,2636.9,2636.8,1.46919]
[1727688700101,10.45529244,2636.9,2636.8,1.46919]
[1727688701104,0.3718,2636.9,2636.8,1.46919]
[1727688701298,3.2078,2637.0,2636.9,0.37917]
[1727688701497,6.50969244,2637.0,2636.9,0.37917]
[1727688703615,6.50969244,2637.0,2636.9,2.74917]
[1727688705008,1.1357,2637.3,2636.9,2.74917]
[1727688705213,3.30189244,2637.1,2637.0,1.12626]
[1727688707009,3.30189244,2637.1,2637.0,0.37916]
[1727688708112,12.50969244,2637.1,2636.7,5.5778]
[1727688708328,12.50969244,2637.1,2636.2,2.64383788]
[1727688708329,3.30189244,2636.8,2636.2,2.64383788]
[1727688708531,3.30189244,2636.3,2636.2,0.37926]
[1727688709731,9.30189244,2636.3,2636.1,0.37928]
[1727688709935,4.45209244,2636.2,2636.1,0.37928]
[1727688710231,7.65989244,2636.2,2636.1,0.37928]
[1727688714229,4.45209244,2636.2,2636.1,0.37928]
[1727688716536,4.45209244,2636.2,2636.0,2.37]
[1727688716837,7.1502,2636.2,2636.1,0.37929]
[1727688717230,4.45209244,2636.2,2636.1,0.37929]
[1727688718034,3.68579244,2636.2,2636.1,0.37929]
[1727688718435,3.68579244,2636.2,2636.1,0.76439]
[1727688718837,3.68579244,2636.2,2636.1,0.37929]
[1727688720543,9.68579244,2636.2,2636.1,0.37929]
[1727688722043,9.68579244,2636.2,2635.9,0.37932]
[1727688722239,3.67799244,2636.1,2636.0,0.3793]
[1727688726653,9.67799244,2636.1,2635.9,0.37931]
[1727688726840,9.67799244,2636.1,2635.8,0.37932]
[1727688726841,3.30189244,2635.9,2635.8,0.37932]
[1727688728241,0.37933,2635.8,2635.5,0.37937]
[1727688728444,3.30189244,2635.6,2635.5,0.37937]
[1727688728838,4.03589244,2635.6,2635.5,0.37937]
[1727688730040,3.30189244,2635.6,2635.5,0.37937]
[1727688730252,0.7419,2636.0,2635.5,4.5417]
[1727688730446,3.30189244,2635.9,2635.8,0.37933]
[1727688731949,3.30189244,2635.9,2635.8,2.74933]
[1727688739755,9.30189244,2635.9,2635.8,0.37933]
[1727688739941,9.68121244,2635.9,2635.8,0.37933]
[1727688740145,9.30189244,2635.9,2635.8,0.37933]
[1727688740344,9.68121244,2635.9,2635.8,0.37933]
[1727688740748,12.88901244,2635.9,2635.8,0.37933]
[1727688741047,12.50969244,2635.9,2635.2,1.33542]
[1727688741248,12.50969244,2635.9,2635.2,2.37]
[1727688741249,3.30189244,2635.4,2635.2,2.37]
[1727688741455,0.3922,2635.3,2635.2,2.74942]
[1727688741655,0.7841,2635.3,2635.2,2.74942]
[1727688744351,4.08599244,2635.3,2635.2,2.74942]
[1727688745857,10.08599244,2635.3,2635.2,0.37942]
[1727688746152,10.08599244,2635.3,2634.8,0.37946]
[1727688746153,0.37944,2635.1,2634.8,0.37946]
[1727688746345,3.30189244,2634.9,2634.8,0.37946]
[1727688746746,9.68829244,2634.9,2634.8,0.37946]
[1727688747848,3.68829244,2634.9,2634.8,0.37946]
[1727688750757,3.30189244,2634.9,2634.8,0.78356]
[1727688752654,3.30189244,2634.9,2634.8,0.37946]
[1727688755858,0.3754,2635.2,2635.1,0.37943]
[1727688756057,6.3754,2635.2,2635.1,2.74943]
[1727688756259,9.67729244,2635.2,2635.1,2.74943]
[1727688758361,9.67729244,2635.2,2634.5,3.6119]
[1727688758561,3.30189244,2634.9,2634.8,2.74947]
[1727688758761,3.30189244,2634.9,2634.5,5.2039]
[1727688758762,3.30189244,2634.6,2634.4,3.2078]
[1727688759068,3.30189244,2634.6,2634.5,2.74952]
[1727688760457,9.30189244,2634.6,2634.5,2.74952]
[1727688761248,9.30189244,2634.6,2634.0,0.3868]
[1727688761459,3.30189244,2634.2,2634.0,0.3868]
[1727688761659,3.30189244,2634.2,2634.1,2.74957]
[1727688763164,9.30189244,2634.2,2634.1,2.74957]
[1727688773281,9.30189244,2634.2,2634.1,0.37957]
[1727688774483,9.68145244,2634.2,2634.0,0.37958]
[1727688774788,4.08096244,2634.1,2633.9,3.58739]
[1727688774977,3.69949244,2634.0,2633.9,3.58739]
[1727688775289,9.69949244,2634.0,2633.9,3.58739]
[1727688780588,9.69949244,2634.0,2633.9,0.37959]
[1727688783584,9.69949244,2634.0,2633.9,2.74959]
[1727688785693,3.30189244,2634.0,2633.9,2.74959]
[1727688785890,3.6068,2634.3,2633.9,2.74959]
[1727688785891,3.6068,2634.3,2634.2,0.37956]
[1727688786192,12.90869244,2634.3,2634.2,0.37956]
[1727688786390,12.90869244,2634.3,2634.1,2.37]
[1727688786690,3.30189244,2634.2,2634.1,0.37956]
[1727688787191,9.30189244,2634.2,2634.1,0.37956]
[1727688787387,9.68145244,2634.2,2634.0,0.37958]
[1727688787587,6.37956,2634.2,2634.0,0.37958]
[1727688787792,3.30189244,2634.1,2634.0,0.37958]
[1727688787986,3.30189244,2634.1,2633.6,4.58761]
[1727688787987,3.30189244,2634.1,2633.7,2.37]
[1727688788181,3.2078,2633.9,2633.8,0.37962]
[1727688788390,3.30189244,2633.6,2633.5,2.74966]
[1727688788588,3.30189244,2633.6,2633.5,0.37966]
[1727688788788,9.30189244,2633.6,2633.5,0.37966]
[1727688789487,10.11329244,2633.6,2633.5,0.37966]
[1727688789882,10.49294244,2633.6,2633.5,0.37966]
[1727688790389,0.37969,2633.3,2633.1,0.37971]
[1727688790589,0.8738,2633.2,2632.3,12.08812383]
[1727688790892,2.94695672,2632.4,2632.3,2.37]
[1727688791097,2.94695672,2632.4,2632.3,2.74983]
[1727688791790,5.38515672,2632.4,2632.3,2.74983]
[1727688792792,2.94695672,2632.4,2632.3,2.74983]
[1727688793994,0.8193,2632.7,2632.3,2.74983]
[1727688794197,2.4382,2632.7,2632.6,2.74979]
[1727688794687,5.38515672,2632.7,2632.6,2.74979]
[1727688801697,2.94695672,2632.7,2632.6,2.74979]
[1727688802697,3.2078,2632.8,2632.6,2.37]
[1727688802898,6.15475672,2632.8,2632.7,0.37978]
[1727688803099,6.15475672,2632.8,2632.7,0.78608]
[1727688804716,8.59295672,2632.8,2632.7,0.78608]
[1727688804905,8.59295672,2632.8,2632.7,0.37978]
[1727688805204,8.59295672,2632.8,2632.6,2.37]
[1727688805205,8.97272672,2632.8,2632.6,0.37978]
[1727688805410,3.35805672,2632.7,2632.6,0.37978]
[1727688805606,3.73783672,2632.7,2632.2,2.37]
[1727688805911,3.2078,2632.5,2632.4,0.37982]
[1727688806408,8.59295672,2632.5,2632.4,0.37982]
[1727688806704,9.44135672,2632.5,2632.1,0.4084]
[1727688807012,9.44135672,2632.5,2632.1,0.78826]
[1727688807013,2.94695672,2632.2,2632.1,0.78826]
[1727688807417,5.38515672,2632.2,2632.1,0.78826]
[1727688812911,5.38515672,2632.2,2632.1,0.37986]
[1727688812912,8.59295672,2632.2,2632.1,0.37986]
[1727688813411,8.59295672,2632.2,2631.0,0.95005]
[1727688813412,2.94695672,2631.7,2631.0,0.95005]
[1727688813613,8.58573,2632.2,2631.3,0.37998]
[1727688813614,2.94695672,2631.4,2631.3,0.37998]
[1727688814019,5.00522672,2631.4,2631.3,0.37998]
[1727688815710,5.00522672,2631.4,2631.3,2.74998]
[1727688817010,3.2078,2631.6,2631.3,2.37]
[1727688817318,5.26607,2631.6,2631.5,0.37995]
[1727688817705,8.21302672,2631.6,2631.5,0.37995]
[1727688818117,8.21302672,2631.6,2630.7,0.95017]
[1727688818314,6.15475672,2631.3,2631.1,0.38001]
[1727688818509,6.15475672,2631.3,2631.0,2.37]
[1727688818713,6.15475672,2631.3,2631.1,0.38001]
[1727688818714,2.94695672,2631.2,2631.1,0.38001]
[1727688818911,2.94695672,2631.2,2631.0,2.37]
[1727688819212,2.94695672,2631.1,2631.0,2.75001]
[1727688819608,5.00522672,2631.1,2631.0,2.75001]
[1727688822020,5.00522672,2631.1,2630.7,2.7882]
[1727688822222,2.94695672,2630.9,2630.7,2.7882]
[1727688822421,2.94695672,2630.9,2630.8,0.38005]
[1727688824121,5.00522672,2630.9,2630.8,0.38005]
[1727688825624,2.94695672,2630.9,2630.8,2.75005]
[1727688826120,1.283,2631.2,2631.1,0.38001]
[1727688826426,3.34127,2631.2,2631.1,0.38001]
[1727688826622,6.28822672,2631.2,2631.1,0.38001]
[1727688827228,6.66822672,2631.2,2631.0,0.38002]
[1727688827416,3.34127,2631.2,2631.0,0.38002]
[1727688827618,2.94695672,2631.1,2631.0,0.38002]
[1727688828019,5.00522672,2631.1,2631.0,0.38002]
[1727688830223,11.00522672,2631.1,2630.4,5.9308]
[1727688830423,11.00522672,2631.1,2630.4,2.75011]
[1727688830424,2.94695672,2630.5,2630.4,2.75011]
[1727688831022,3.2078,2631.0,2630.4,0.38011]
[1727688831221,2.94695672,2630.5,2630.4,0.38011]
[1727688831616,5.00522672,2630.5,2630.4,0.38011]
[1727688832723,2.94695672,2630.5,2630.4,0.38011]
[1727688834427,0.4237,2630.9,2630.6,0.38008]
[1727688834629,2.94695672,2630.7,2630.6,0.38008]
[1727688835824,0.37998,2631.3,2630.6,0.38008]
[1727688835825,3.2078,2631.4,2630.6,12.1716]
[1727688836027,2.05827,2631.4,2631.3,2.74998]
[1727688836222,2.05827,2631.4,2631.3,0.37998]
[1727688836429,5.00522672,2631.4,2631.3,0.37998]
[1727688836929,8.21302672,2631.4,2631.3,0.37998]
[1727688846129,9.2078,2631.4,2630.2,1.5873931]
[1727688846336,3.2078,2630.8,2630.4,0.353]
[1727688846528,2.37,2630.9,2630.4,0.38011]
[1727688846529,3.2078,2630.5,2630.4,0.38011]
[1727688846929,5.26607,2630.5,2630.4,0.38011]
[1727688850942,2.05827,2630.5,2630.4,0.38011]
[1727688852636,3.2078,2630.6,2630.5,0.38009]
[1727688852949,5.26607,2630.6,2630.5,0.38009]
[1727688855848,5.26607,2630.6,2630.2,0.4376]
[1727688856237,5.26607,2630.6,2630.4,0.3801]
[1727688856753,5.64615,2630.6,2630.4,0.3801]
[1727688857645,5.26607,2630.6,2630.4,0.3801]
[1727688857846,5.26607,2630.6,2630.2,0.4376]
[1727688858049,5.26607,2630.6,2630.5,0.38009]
[1727688860551,3.2078,2630.9,2630.5,3.8016]
[1727688860755,3.2078,2630.9,2630.8,0.38005]
[1727688861846,5.26607,2630.9,2630.8,0.38005]
[1727688862049,5.26607,2630.9,2630.7,0.38005]
[1727688862350,5.26607,2630.9,2630.8,0.38005]
[1727688862956,5.26607,2630.9,2630.6,0.4341]
[1727688863150,5.26607,2630.9,2630.7,0.38006]
[1727688863454,5.26607,2630.9,2630.8,0.38005]
[1727688863646,5.26607,2630.9,2630.6,0.4341]
[1727688864047,5.26607,2630.9,2630.7,0.38006]
[1727688864748,5.26607,2630.9,2630.8,0.38005]
[1727688864944,5.26607,2630.9,2630.6,0.4341]
[1727688865150,5.26607,2630.9,2630.6,0.38007]
[1727688865151,5.64611,2630.9,2630.6,0.38007]
[1727688865347,5.26607,2630.9,2630.6,0.38007]
[1727688865851,5.64612,2630.9,2630.5,0.38008]
[1727688866047,3.2078,2630.6,2630.5,0.38008]
[1727688866556,5.26607,2630.6,2630.5,0.38008]
[1727688875056,5.26607,2630.6,2630.5,0.38009]
[1727688875857,5.26607,2630.6,2630.5,0.78349]
[1727688876050,2.05827,2630.6,2630.5,0.78349]
[1727688877761,2.05827,2630.6,2630.3,0.432]
[1727688877954,0.8264,2630.5,2630.4,0.3801]
[1727688878465,2.47947,2630.5,2630.4,0.3801]
[1727688878669,2.05827,2630.5,2630.4,0.3801]
[1727688878868,2.05827,2630.5,2630.4,0.7946]
[1727688879259,0.808,2630.8,2630.7,0.38006]
[1727688879465,2.86627,2630.8,2630.7,0.38006]
[1727688879958,2.86627,2630.8,2630.6,0.38007]
[1727688880464,2.86627,2630.8,2630.7,0.38006]
[1727688880863,3.2078,2630.9,2630.8,0.38005]
[1727688881079,3.2078,2630.9,2630.8,0.79455]
[1727688881257,5.26607,2630.9,2630.8,0.38005]
[1727688887665,5.26607,2630.9,2630.4,4.30700216]
[1727688887666,9.06687,2630.9,2630.3,0.98674216]
[1727688887873,9.06687,2630.9,2630.4,0.4095]
[1727688887874,3.2078,2630.5,2630.4,0.4095]
[1727688888074,3.2078,2630.5,2630.4,0.78961]
[1727688888277,5.26607,2630.5,2630.4,0.78961]
[1727688890071,4.4286,2630.8,2630.7,0.38006]
[1727688890268,6.48687,2630.8,2630.7,0.38006]
[1727688890464,6.48687,2630.8,2630.4,0.4095]
[1727688890465,6.48687,2630.8,2630.6,0.38007]
[1727688890677,6.48687,2630.8,2630.6,0.38008]
[1727688891471,6.48687,2630.8,2630.4,0.4095]
[1727688891775,6.48687,2630.8,2630.6,0.38007]
[1727688892273,6.48687,2630.8,2630.7,0.38006]
[1727688892466,6.48687,2630.8,2630.4,0.4095]
[1727688892666,6.86693,2630.8,2630.6,0.38007]
[1727688892871,6.48687,2630.8,2630.4,0.4095]
[1727688893177,0.38007,2630.7,2630.5,0.38009]
[1727688893772,2.43834,2630.7,2630.4,0.7896]
[1727688894576,2.05827,2630.7,2630.5,0.38009]
[1727688895276,2.43834,2630.7,2630.5,0.38009]
[1727688895666,2.05827,2630.7,2630.3,0.4328]
[1727688895867,2.05827,2630.7,2630.5,0.38008]
[1727688896070,2.05827,2630.7,2630.3,0.4328]
[1727688896276,2.05827,2630.7,2630.6,0.38008]
[1727688898378,2.05827,2630.7,2630.3,1.41954216]
[1727688898682,2.05827,2630.7,2630.6,0.38008]
[1727688902179,4.42827,2630.7,2630.3,0.4328]
[1727688902382,3.2078,2630.5,2630.4,0.38011]
[1727688902981,5.26607,2630.5,2630.4,0.38011]
[1727688903384,5.26607,2630.5,2630.3,0.81291]
[1727688903683,0.7675,2630.4,2630.3,0.38012]
[1727688904077,2.82577,2630.4,2630.1,0.38015]
[1727688904279,3.2078,2630.2,2630.1,0.38015]
[1727688904882,5.26607,2630.2,2630.1,0.38015]
[1727688906180,5.26607,2630.2,2630.0,0.3874]
[1727688906374,5.26607,2630.2,2630.1,0.38015]
[1727688906580,5.26607,2630.2,2630.0,0.3874]
[1727688906780,5.26607,2630.2,2630.1,0.38015]
[1727688906978,7.63607,2630.2,2629.5,5.11674216]
[1727688907186,3.2078,2629.9,2629.8,0.38019]
[1727688907395,2.05827,2630.2,2629.8,2.37]
[1727688907682,0.3744,2630.7,2630.1,2.37]
[1727688907985,0.395,2630.6,2630.4,0.3801]
[1727688908287,0.395,2630.6,2630.2,0.7616]
[1727688908487,2.45327,2630.6,2630.4,0.3801]
[1727688909386,2.45327,2630.6,2630.2,0.7616]
[1727688909585,2.45327,2630.6,2630.5,0.38009]
[1727688909777,2.05827,2630.6,2630.5,0.38009]
[1727688910386,3.2078,2630.8,2630.7,0.38006]
[1727688910586,3.2078,2630.8,2630.7,6.55086]
[1727688911086,3.2078,2630.8,2630.7,7.31426]
[1727688911783,3.2078,2631.1,2630.7,10.5642]
[1727688911982,0.3866,2631.4,2631.0,2.37]
[1727688911983,3.5944,2631.4,2631.0,2.37]
[1727688912186,5.65267,2631.4,2631.1,0.74749]
[1727688912898,0.3791,2631.3,2631.1,0.3675]
[1727688913082,5.65267,2631.4,2631.1,0.3675]
[1727688913285,5.26607,2631.4,2631.3,0.37998]
[1727688913787,3.2078,2631.4,2631.3,0.37998]
[1727688913992,5.26607,2631.4,2631.3,0.37998]
[1727688915397,5.26607,2631.4,2631.2,0.76038]
[1727688915593,5.26607,2631.4,2631.3,0.37998]
[1727688916792,3.2078,2631.4,2631.3,6.54998]
[1727688916991,3.2078,2631.4,2631.3,12.93638]
[1727688917196,3.2078,2631.4,2631.3,6.93638]
[1727688917490,3.2078,2631.8,2631.3,12.5564]
[1727688917694,3.2078,2632.4,2632.3,0.37983]
[1727688917891,3.2078,2632.4,2632.3,2.74983]
[1727688918091,3.2078,2632.4,2632.3,6.54903]
[1727688920087,3.2078,2632.4,2632.3,2.74983]
[1727688920288,3.2078,2632.4,2632.3,0.37983]
[1727688920493,3.2078,2632.4,2632.2,0.37984]
[1727688920494,5.26607,2632.4,2632.2,0.37984]
[1727688920800,0.3837,2632.3,2632.1,0.37985]
[1727688920991,0.3837,2632.3,2632.2,0.37985]
[1727688921293,0.3837,2632.3,2631.9,3.927]
[1727688921294,3.2078,2632.4,2632.1,2.37]
[1727688921595,0.3837,2632.7,2632.6,0.37979]
[1727688921794,2.44197,2632.7,2632.6,0.37979]
[1727688922096,2.44197,2632.7,2632.5,0.3798]
[1727688922389,2.44197,2632.7,2632.3,2.37]
[1727688922590,2.44197,2632.7,2632.6,0.37979]
[1727688923992,2.44197,2632.7,2632.3,2.37]
[1727688924192,2.44197,2632.7,2632.4,0.37982]
[1727688924393,2.44197,2632.7,2632.5,0.3798]
[1727688924798,3.2078,2632.6,2632.5,0.3798]
[1727688925186,5.26607,2632.6,2632.5,0.3798]
[1727688927392,5.64317,2632.6,2632.5,0.3798]
[1727688930598,5.64317,2632.6,2632.3,2.37]
[1727688930798,5.64317,2632.6,2632.5,0.37981]
[1727688932799,5.64317,2632.6,2632.4,0.37981]
[1727688933403,5.64317,2632.6,2632.3,2.37]
[1727688933604,5.64317,2632.6,2632.5,0.37981]
[1727688934610,5.64317,2632.6,2632.3,2.37]
[1727688934611,5.64317,2632.6,2632.4,0.37981]
[1727688934910,5.64317,2632.6,2632.5,0.37981]
[1727688935100,5.64317,2632.6,2632.4,0.37981]
[1727688935807,5.64317,2632.6,2632.3,2.37]
[1727688936104,2.05827,2632.6,2632.5,2.37]
[1727688936309,2.05827,2632.6,2632.5,2.74981]
[1727688938208,5.26607,2632.6,2632.5,2.37]
[1727688938406,5.26607,2632.6,2632.4,2.37]
[1727688938607,0.3884,2632.5,2632.4,2.74982]
[1727688939105,2.44667,2632.5,2632.4,2.74982]
[1727688943714,2.44667,2632.5,2632.4,0.37982]
[1727688943917,2.44667,2632.5,2632.4,2.74982]
[1727688949526,0.94956,2632.4,2631.7,2.74991]
[1727688949711,0.37989,2631.9,2631.7,2.37]
[1727688950023,1.142,2631.8,2631.7,2.37]
[1727688950226,4.3498,2631.8,2631.7,2.37]
[1727688950517,6.40807,2631.8,2631.7,2.37]
[1727688951917,6.40807,2631.8,2631.7,2.74992]
[1727688952714,3.2078,2631.8,2631.7,2.74992]
[1727688952921,0.37984,2632.3,2631.7,6.17]
[1727688952922,4.3391,2632.3,2631.7,6.17]
[1727688953118,4.3391,2632.3,2631.5,0.94988]
[1727688953119,6.39737,2632.3,2632.2,2.74985]
[1727688954915,3.2078,2632.6,2632.2,6.1692]
[1727688955115,0.94917,2633.5,2632.2,6.1692]
[1727688955116,0.37975,2632.9,2632.6,0.37979]
[1727688955418,0.3946,2632.8,2632.5,2.7498]
[1727688955839,2.45287,2632.8,2632.5,2.7498]
[1727688956823,2.45287,2632.8,2632.5,2.37]
[1727688957024,2.45287,2632.8,2632.6,0.37979]